fUSD/lending_fUSD_20240109
["ID","MTS","AMOUNT","RATE_DAILY","PERIOD"]
[310908932,1704814313936,-2655.54,0.00041342,30]
[310908933,1704814313945,-764.5,0.00041342,30]
[310908934,1704814313955,-8868.04,0.00041342,30]
[310908935,1704814313965,-500.0,0.00041342,30]
[310908936,1704814313975,-770.69,0.00041342,30]
[310908937,1704814313985,-4116.15,0.00041342,30]
[310908938,1704814313995,-6036.32,0.00041342,30]
[310908939,1704814314005,-3806.3,0.00041342,30]
[310908940,1704814314015,-500.0,0.00041342,30]
[310908941,1704814314024,-1289.28,0.00041342,30]
[310908942,1704814314034,-5775.13,0.00041342,30]
[310908943,1704814314043,-500.0,0.00041342,30]
[310908944,1704814314053,-845.03,0.00041342,30]
[310908945,1704814314063,-6309.52,0.00041342,30]
[310908946,1704814314074,-5575.14,0.00041342,30]
[310908947,1704814314085,-1090.32,0.00041342,30]
[310908948,1704814314095,-3727.78,0.00041342,30]
[310908949,1704814314107,-517.34447619,0.00041342,30]
[310908950,1704814314119,-1000.0,0.00041342,10]
[310908951,1704814314130,-901.26,0.00041342,30]
[310908952,1704814314142,-10643.6,0.00041342,30]
[310908953,1704814314154,-529.51,0.00041342,30]
[310908954,1704814314166,-500.0,0.00041342,30]
[310908955,1704814314177,-500.0,0.00041342,30]
[310908956,1704814314188,-4214.2,0.00041342,30]
[310908957,1704814314200,-267.7092479,0.00041342,30]
[310908958,1704814314211,-500.0,0.00041342,30]
[310908959,1704814314222,-500.0,0.00041342,30]
[310908960,1704814314232,-3567.97,0.00041342,30]
[310908961,1704814314243,-500.0,0.00041342,30]
[310908962,1704814314255,-25536.63,0.00041342,30]
[310908963,1704814314266,-2289.51,0.00041342,30]
[310908964,1704814314277,-2584.46,0.00041342,30]
[310908965,1704814314287,-4952.19,0.00041342,30]
[310908966,1704814314298,-4092.41,0.00041342,30]
[310908967,1704814314309,-546.11,0.00041342,30]
[310908968,1704814314325,-6469.48,0.00041342,30]
[310908969,1704814314336,-1000.5,0.00041342,30]
[310908970,1704814314347,-500.0,0.00041342,30]
[310908971,1704814314358,-1883.51,0.00041342,30]
[310908972,1704814314369,-500.0,0.00041342,30]
[310908973,1704814314379,-14086.33,0.00041342,30]
[310908974,1704814314389,-17610.03,0.00041342,30]
[310908975,1704814314400,-2218.2,0.00041342,30]
[310908976,1704814314410,-500.0,0.00041342,30]
[310908977,1704814314421,-1520.43,0.00041342,30]
[310908978,1704814314432,-2301.6,0.00041342,30]
[310908979,1704814314442,-500.0,0.00041342,30]
[310908980,1704814314453,-3584.84,0.00041342,30]
[310908981,1704814314463,-12370.47,0.00041342,30]
[310908982,1704814314473,-82269.16,0.00041342,30]
[310908983,1704814314483,-587.12,0.00041342,30]
[310908984,1704814314494,-500.0,0.00041342,30]
[310908985,1704814314504,-507.17426859,0.00041342,30]
[310908986,1704814314514,-2651.08,0.00041342,30]
[310908987,1704814314524,-811.16,0.00041342,30]
[310908988,1704814314534,-500.0,0.00041342,30]
[310908989,1704814314543,-500.0,0.00041342,30]
[310908990,1704814314555,-8660.7,0.00041342,30]
[310908991,1704814314565,-500.0,0.00041342,30]
[310908992,1704814314578,-500.0,0.00041342,30]
[310908993,1704814314588,-7898.64,0.00041342,30]
[310908994,1704814314599,-1178.68,0.00041342,30]
[310908995,1704814314609,-500.0,0.00041342,30]
[310908996,1704814314620,-6405.08,0.00041342,30]
[310908997,1704814314631,-6245.69,0.00041342,30]
[310908998,1704814314641,-500.0,0.00041342,30]
[310908999,1704814314651,-3770.14,0.00041342,30]
[310909000,1704814314660,-500.0,0.00041342,30]
[310909001,1704814314670,-1235.98,0.00041342,30]
[310909002,1704814314680,-1033.39,0.00041342,30]
[310909003,1704814314689,-2108.08,0.00041342,30]
[310909004,1704814314699,-4003.81,0.00041342,30]
[310909005,1704814314709,-3248.4,0.00041342,30]
[310909006,1704814314719,-500.0,0.00041342,30]
[310909007,1704814314729,-500.0,0.00041342,30]
[310909008,1704814314738,-923.06,0.00041342,30]
[310909009,1704814314747,-1028.56,0.00041342,30]
[310909010,1704814314757,-500.0,0.00041342,30]
[310909011,1704814314767,-818.97,0.00041342,30]
[310909012,1704814314776,-500.0,0.00041342,30]
[310909013,1704814314786,-3938.01,0.00041342,30]
[310909014,1704814314799,-500.0,0.00041342,30]
[310909015,1704814314809,-500.0,0.00041342,30]
[310909016,1704814314820,-500.0,0.00041342,30]
[310909017,1704814314830,-936.13,0.00041342,30]
[310909018,1704814314840,-5593.35,0.00041342,30]
[310909019,1704814314850,-500.0,0.00041342,30]
[310909020,1704814314861,-500.0,0.00041342,30]
[310909021,1704814314871,-500.0,0.00041342,30]
[310909022,1704814314881,-500.0,0.00041342,30]
[310909023,1704814314890,-500.0,0.00041342,30]
[310909024,1704814314900,-500.0,0.00041342,30]
[310909025,1704814314910,-603.44,0.00041342,30]
[310909026,1704814314920,-852.7,0.00041342,30]
[310909027,1704814314930,-756.79,0.00041342,30]
[310909028,1704814314940,-500.0,0.00041342,30]
[310909029,1704814314950,-500.0,0.00041342,30]
[310909030,1704814314960,-500.0,0.00041342,30]
[310909031,1704814314969,-2774.75,0.00041342,30]
[310909032,1704814314979,-3304.06,0.00041342,30]
[310909033,1704814314988,-500.0,0.00041342,30]
[310909034,1704814314997,-2316.93,0.00041342,30]
[310909035,1704814315007,-2999.26,0.00041342,30]
[310909036,1704814315016,-3194.24,0.00041342,30]
[310909037,1704814315026,-1565.16,0.00041342,30]
[310909038,1704814315035,-158.9376737,0.00041344,7]
[310909039,1704814315045,-500.0,0.00041369,30]
[310909040,1704814315054,-1287.89,0.00041369,21]
[310909041,1704814315064,-3257.97,0.00041369,120]
[310909042,1704814315073,-8750.0,0.00041375,2]
[310909043,1704814315082,-8750.0,0.00041375,2]
[310909044,1704814315092,-8750.0,0.00041375,2]
[310909045,1704814315101,-3339.0,0.0004139,3]
[310909046,1704814315111,-553.23,0.00041424,2]
[310909047,1704814315120,-500.0,0.00041424,30]
[310909048,1704814315130,-500.0,0.00041424,30]
[310909049,1704814315140,-534.03585942,0.00041424,30]
[310909050,1704814315150,-1349.16,0.00041424,30]
[310909051,1704814315160,-169.41445567,0.00041424,30]
[310909052,1704814315169,-500.0,0.00041424,30]
[310909053,1704814315179,-500.0,0.00041424,30]
[310909054,1704814315189,-500.0,0.00041424,30]
[310909055,1704814315199,-1655.21,0.00041424,30]
[310909056,1704814315208,-717.53,0.00041424,30]
[310909057,1704814315218,-500.0,0.00041424,30]
[310909058,1704814315227,-684.27,0.00041424,30]
[310909059,1704814315237,-500.0,0.00041424,30]
[310909060,1704814315246,-500.0,0.00041424,30]
[310909061,1704814315255,-500.0,0.00041424,30]
[310909062,1704814315265,-878.82,0.00041424,30]
[310909063,1704814315274,-500.0,0.00041424,30]
[310909064,1704814315283,-500.0,0.00041424,30]
[310909065,1704814315293,-500.0,0.00041424,30]
[310909066,1704814315303,-500.0,0.00041424,30]
[310909067,1704814315313,-505.38,0.00041424,30]
[310909068,1704814315325,-1062.3,0.00041424,30]
[310909069,1704814315335,-500.0,0.00041424,30]
[310909070,1704814315344,-500.0,0.00041424,30]
[310909071,1704814315355,-500.0,0.00041424,30]
[310909072,1704814315364,-500.0,0.00041424,30]
[310909073,1704814315374,-500.0,0.00041424,30]
[310909074,1704814315383,-701.66,0.00041424,30]
[310909075,1704814315393,-1067.49,0.00041424,30]
[310909076,1704814315402,-500.0,0.00041424,30]
[310909077,1704814315412,-565.87,0.00041424,30]
[310909078,1704814315421,-500.0,0.00041424,30]
[310909079,1704814315431,-500.0,0.00041424,30]
[310909080,1704814315440,-500.0,0.00041424,30]
[310909081,1704814315450,-707.34,0.00041424,30]
[310909082,1704814315460,-676.09,0.00041424,30]
[310909083,1704814315470,-543.72315983,0.00041424,30]
[310909084,1704814315620,-150.6575851,0.00041424,30]
[310909085,1704814315631,-1000.0,0.00041424,30]
[310909086,1704814315640,-2060.33,0.00041424,30]
[310909087,1704814315650,-581.02,0.00041424,30]
[310909088,1704814315659,-1072.03,0.00041424,30]
[310909089,1704814315669,-712.95,0.00041424,30]
[310909090,1704814315678,-500.0,0.00041424,30]
[310909091,1704814315687,-500.0,0.00041424,30]
[310909092,1704814315697,-500.0,0.00041424,30]
[310909093,1704814315706,-569.49,0.00041424,30]
[310909094,1704814315715,-500.0,0.00041424,30]
[310909095,1704814315725,-500.0,0.00041424,30]
[310909096,1704814315734,-500.0,0.00041424,30]
[310909097,1704814315744,-500.0,0.00041424,30]
[310909098,1704814315753,-611.31,0.00041424,30]
[310909099,1704814315763,-500.0,0.00041424,30]
[310909100,1704814315773,-500.0,0.00041424,30]
[310909101,1704814315783,-500.0,0.00041424,30]
[310909102,1704814315793,-500.0,0.00041424,30]
[310909103,1704814315804,-500.0,0.00041424,30]
[310909104,1704814315814,-500.0,0.00041424,30]
[310909105,1704814315825,-500.0,0.00041424,30]
[310909106,1704814315834,-500.0,0.00041424,30]
[310909107,1704814315844,-500.0,0.00041424,30]
[310909108,1704814315854,-500.0,0.00041424,30]
[310909109,1704814315863,-500.0,0.00041424,30]
[310909110,1704814315873,-569.87,0.00041424,2]
[310909111,1704814315882,-500.0,0.00041424,30]
[310909112,1704814315891,-215.7319943,0.00041424,30]
[310909113,1704814315901,-500.0,0.00041424,30]
[310909114,1704814315911,-500.0,0.00041424,30]
[310909115,1704814315920,-1090.72,0.00041424,30]
[310909116,1704814315930,-808.52,0.00041424,30]
[310909117,1704814315939,-500.0,0.00041424,30]
[310909118,1704814315950,-500.0,0.00041424,30]
[310909119,1704814315960,-500.0,0.00041424,30]
[310909120,1704814315969,-304.29951418,0.00041424,30]
[310909121,1704814315979,-500.0,0.00041424,30]
[310909122,1704814315989,-500.0,0.00041424,30]
[310909123,1704814315998,-500.0,0.00041424,30]
[310909124,1704814316008,-500.0,0.00041424,30]
[310909125,1704814316018,-645.46663645,0.00041424,30]
[310909126,1704814316027,-500.0,0.00041424,30]
[310909127,1704814316038,-1089.41,0.00041424,30]
[310909128,1704814316047,-675.87,0.00041424,30]
[310909129,1704814316057,-564.61882091,0.00041424,30]
[310909130,1704814316067,-500.0,0.00041424,30]
[310909131,1704814316077,-518.6156913,0.00041424,30]
[310909132,1704814316087,-586.81813665,0.00041424,30]
[310909133,1704814316096,-978.4,0.00041424,30]
[310909134,1704814316106,-500.0,0.00041424,30]
[310909135,1704814316115,-500.0,0.00041424,30]
[310909136,1704814316124,-500.0,0.00041424,30]
[310909137,1704814316134,-500.0,0.00041424,30]
[310909138,1704814316143,-500.0,0.00041424,30]
[310909139,1704814316152,-500.0,0.00041424,30]
[310909140,1704814316162,-500.0,0.00041424,30]
[310909141,1704814316172,-500.0,0.00041424,30]
[310909142,1704814316181,-943.45,0.00041424,30]
[310909143,1704814316191,-500.0,0.00041424,30]
[310909144,1704814316201,-500.0,0.00041424,30]
[310909145,1704814316211,-1046.91,0.00041424,30]
[310909146,1704814316221,-500.0,0.00041424,30]
[310909147,1704814316231,-500.0,0.00041424,30]
[310909148,1704814316240,-500.0,0.00041424,30]
[310909149,1704814316250,-150.88792009,0.00041424,30]
[310909150,1704814316260,-500.0,0.00041424,30]
[310909151,1704814316269,-989.32,0.00041424,30]
[310909152,1704814316280,-500.0,0.00041424,30]
[310909153,1704814316289,-500.0,0.00041424,30]
[310909154,1704814316299,-523.36,0.00041424,30]
[310909155,1704814316309,-735.81,0.00041424,30]
[310909156,1704814316319,-500.0,0.00041424,30]
[310909157,1704814316328,-159.03215488,0.00041424,30]
[310909158,1704814316337,-500.0,0.00041424,30]
[310909159,1704814316347,-611.45956062,0.00041424,30]
[310909160,1704814316357,-500.0,0.00041424,7]
[310909161,1704814316367,-805.93,0.00041424,30]
[310909162,1704814316377,-500.0,0.00041424,30]
[310909163,1704814316387,-500.0,0.00041424,30]
[310909164,1704814316397,-500.0,0.00041424,30]
[310909165,1704814316407,-500.0,0.00041424,30]
[310909166,1704814316417,-1029.87,0.00041424,30]
[310909167,1704814316427,-500.0,0.00041424,30]
[310909168,1704814316437,-500.0,0.00041424,30]
[310909169,1704814316447,-500.0,0.00041424,30]
[310909170,1704814316456,-500.0,0.00041424,30]
[310909171,1704814316466,-858.42,0.00041424,30]
[310909172,1704814316475,-500.0,0.00041424,30]
[310909173,1704814316485,-500.0,0.00041424,30]
[310909174,1704814316495,-985.14,0.00041424,30]
[310909175,1704814316505,-250.0,0.00041424,30]
[310909176,1704814316514,-500.0,0.00041424,30]
[310909177,1704814316523,-887.41,0.00041424,30]
[310909178,1704814316533,-586.06,0.00041424,30]
[310909179,1704814316542,-500.0,0.00041424,30]
[310909180,1704814316553,-542.26,0.00041424,30]
[310909181,1704814316563,-500.0,0.00041424,30]
[310909182,1704814316574,-500.0,0.00041424,30]
[310909183,1704814316584,-924.59,0.00041424,30]
[310909184,1704814316594,-639.05,0.00041424,30]
[310909185,1704814316604,-500.0,0.00041424,30]
[310909186,1704814316614,-1031.16,0.00041424,30]
[310909187,1704814316623,-500.0,0.00041424,30]
[310909188,1704814316633,-651.17,0.00041424,6]
[310909189,1704814316643,-500.0,0.00041424,30]
[310909190,1704814316653,-273.3703245,0.00041424,30]
[310909191,1704814316662,-630.96,0.00041424,30]
[310909192,1704814316673,-500.0,0.00041424,30]
[310909193,1704814316683,-479.67179461,0.00041424,30]
[310909194,1704814316692,-500.0,0.00041424,30]
[310909195,1704814316702,-808.61,0.00041424,30]
[310909196,1704814316711,-772.64,0.00041424,30]
[310909197,1704814316721,-500.0,0.00041424,30]
[310909198,1704814316730,-500.0,0.00041424,30]
[310909199,1704814316740,-768.03,0.00041424,30]
[310909200,1704814316749,-1151.39,0.00041424,30]
[310909201,1704814316759,-500.0,0.00041424,30]
[310909202,1704814316768,-500.0,0.00041424,30]
[310909203,1704814316778,-500.0,0.00041424,30]
[310909204,1704814316787,-500.0,0.00041424,30]
[310909205,1704814316797,-429.17028296,0.00041424,30]
[310909206,1704814316809,-500.0,0.00041424,30]
[310909207,1704814316819,-500.0,0.00041424,30]
[310909208,1704814316829,-500.0,0.00041424,30]
[310909209,1704814316839,-500.0,0.00041424,30]
[310909210,1704814316848,-500.0,0.00041424,30]
[310909211,1704814316858,-594.48,0.00041424,30]
[310909212,1704814316868,-1345.27,0.00041424,30]
[310909213,1704814316877,-530.22,0.00041424,30]
[310909214,1704814316887,-504.9,0.00041424,30]
[310909215,1704814316897,-500.0,0.00041424,30]
[310909216,1704814316907,-500.0,0.00041424,30]
[310909217,1704814316917,-500.0,0.00041424,30]
[310909218,1704814316927,-500.0,0.00041424,30]
[310909219,1704814316938,-898.15,0.00041424,30]
[310909220,1704814316948,-500.0,0.00041424,30]
[310909221,1704814316958,-1000.0,0.00041424,2]
[310909222,1704814316968,-500.0,0.00041424,30]
[310909223,1704814316978,-510.4326189,0.00041424,30]
[310909224,1704814316987,-1088.78,0.00041424,30]
[310909225,1704814316997,-827.59,0.00041424,30]
[310909226,1704814317007,-500.0,0.00041424,30]
[310909227,1704814317017,-500.0,0.00041424,30]
[310909228,1704814317026,-500.0,0.00041424,30]
[310909229,1704814317036,-500.0,0.00041424,30]
[310909230,1704814317046,-1220.08,0.00041424,30]
[310909231,1704814317056,-500.0,0.00041424,30]
[310909232,1704814317067,-965.85,0.00041424,30]
[310909233,1704814317077,-1200.92,0.00041424,30]
[310909234,1704814317086,-500.0,0.00041424,30]
[310909235,1704814317096,-615.95,0.00041424,30]
[310909236,1704814317106,-500.0,0.00041424,30]
[310909237,1704814317116,-677.14,0.00041424,30]
[310909238,1704814317125,-500.0,0.00041424,30]
[310909239,1704814317135,-500.0,0.00041424,30]
[310909240,1704814317144,-505.21125071,0.00041424,30]
[310909241,1704814317154,-500.0,0.00041424,30]
[310909242,1704814317163,-906.91,0.00041424,30]
[310909243,1704814317173,-500.0,0.00041424,30]
[310909244,1704814317183,-500.0,0.00041424,30]
[310909245,1704814317192,-500.0,0.00041424,30]
[310909246,1704814317203,-1003.46,0.00041424,30]
[310909247,1704814317212,-500.0,0.00041424,30]
[310909248,1704814317222,-500.0,0.00041424,30]
[310909249,1704814317232,-805.99,0.00041424,30]
[310909250,1704814317242,-500.0,0.00041424,30]
[310909251,1704814317252,-500.0,0.00041424,30]
[310909252,1704814317261,-500.0,0.00041424,30]
[310909253,1704814317271,-500.0,0.00041424,30]
[310909254,1704814317281,-500.0,0.00041424,30]
[310909255,1704814317292,-500.0,0.00041424,30]
[310909256,1704814317302,-500.0,0.00041424,30]
[310909257,1704814317311,-500.0,0.00041424,30]
[310909258,1704814317325,-920.79,0.00041424,30]
[310909259,1704814317335,-508.87703033,0.00041424,30]
[310909260,1704814317346,-983.43,0.00041424,30]
[310909261,1704814317356,-628.8,0.00041424,30]
[310909262,1704814317366,-500.0,0.00041424,30]
[310909263,1704814317377,-500.0,0.00041424,30]
[310909264,1704814317387,-500.0,0.00041424,30]
[310909265,1704814317727,-500.0,0.00041424,30]
[310909266,1704814317784,-500.0,0.00041424,30]
[310909267,1704814317794,-500.0,0.00041424,30]
[310909268,1704814317804,-500.0,0.00041424,30]
[310909269,1704814317817,-544.66,0.00041424,30]
[310909270,1704814317827,-500.0,0.00041424,30]
[310909271,1704814317837,-500.0,0.00041424,30]
[310909272,1704814317847,-500.0,0.00041424,30]
[310909273,1704814317858,-500.0,0.00041424,30]
[310909274,1704814317868,-1232.09,0.00041424,30]
[310909275,1704814317879,-500.0,0.00041424,30]
[310909276,1704814317889,-832.26,0.00041424,30]
[310909277,1704814317899,-500.0,0.00041424,30]
[310909278,1704814317909,-500.0,0.00041424,7]
[310909279,1704814317919,-500.0,0.00041424,30]
[310909280,1704814317928,-941.95,0.00041424,30]
[310909281,1704814317938,-500.0,0.00041424,30]
[310909282,1704814317948,-809.62,0.00041424,30]
[310909283,1704814317958,-500.0,0.00041424,30]
[310909284,1704814317967,-1379.83,0.00041424,30]
[310909285,1704814317976,-645.6435863,0.00041424,30]
[310909286,1704814317986,-510.33579343,0.00041424,30]
[310909287,1704814317996,-332.96961483,0.00041424,30]
[310909288,1704814318006,-500.0,0.00041424,30]
[310909289,1704814318016,-844.05,0.00041424,30]
[310909290,1704814318026,-851.49,0.00041424,30]
[310909291,1704814318037,-562.95,0.00041424,30]
[310909292,1704814318047,-1162.12,0.00041424,30]
[310909293,1704814318056,-500.0,0.00041424,30]
[310909294,1704814318069,-872.21,0.00041424,30]
[310909295,1704814318078,-500.0,0.00041424,30]
[310909296,1704814318088,-706.17,0.00041424,30]
[310909297,1704814318097,-980.88,0.00041424,30]
[310909298,1704814318106,-500.0,0.00041424,30]
[310909299,1704814318114,-500.0,0.00041424,30]
[310909300,1704814318123,-730.77,0.00041424,30]
[310909301,1704814318133,-500.0,0.00041424,30]
[310909302,1704814318143,-500.0,0.00041424,30]
[310909303,1704814318152,-500.0,0.00041424,30]
[310909304,1704814318162,-335.68434625,0.00041424,30]
[310909305,1704814318172,-635.39,0.00041424,30]
[310909306,1704814318183,-500.0,0.00041424,30]
[310909307,1704814318192,-921.8,0.00041424,30]
[310909308,1704814318202,-500.0,0.00041424,30]
[310909309,1704814318212,-613.33,0.00041424,30]
[310909310,1704814318222,-500.0,0.00041424,30]
[310909311,1704814318232,-1001.03,0.00041424,30]
[310909312,1704814318242,-2820.32,0.00041424,30]
[310909313,1704814318252,-500.0,0.00041424,30]
[310909314,1704814318262,-878.02,0.00041424,30]
[310909315,1704814318272,-2535.74,0.00041424,30]
[310909316,1704814318282,-500.0,0.00041424,30]
[310909317,1704814318292,-500.0,0.00041424,30]
[310909318,1704814318301,-1197.1,0.00041424,30]
[310909319,1704814318311,-500.0,0.00041424,30]
[310909320,1704814318323,-500.0,0.00041424,30]
[310909321,1704814318333,-500.0,0.00041424,30]
[310909322,1704814318343,-500.0,0.00041424,30]
[310909323,1704814318352,-703.38,0.00041424,30]
[310909324,1704814318362,-500.0,0.00041424,30]
[310909325,1704814318371,-500.0,0.00041424,30]
[310909326,1704814318381,-500.0,0.00041424,30]
[310909327,1704814318390,-500.0,0.00041424,30]
[310909328,1704814318400,-500.0,0.00041424,30]
[310909329,1704814318410,-500.0,0.00041424,30]
[310909330,1704814318420,-500.0,0.00041424,30]
[310909331,1704814318430,-530.76115029,0.00041424,30]
[310909332,1704814318441,-1209.27,0.00041424,30]
[310909333,1704814318451,-500.0,0.00041424,30]
[310909334,1704814318461,-3470.75,0.00041424,30]
[310909335,1704814318472,-736.81,0.00041424,30]
[310909336,1704814318482,-500.0,0.00041424,30]
[310909337,1704814318492,-500.0,0.00041424,30]
[310909338,1704814318502,-623.79206424,0.00041424,30]
[310909339,1704814318511,-500.0,0.00041424,30]
[310909340,1704814318521,-832.75,0.00041424,30]
[310909341,1704814318531,-1686.91,0.00041424,30]
[310909342,1704814318541,-2682.01,0.00041424,30]
[310909343,1704814318550,-2537.38,0.00041424,30]
[310909344,1704814318560,-1565.58,0.00041424,30]
[310909345,1704814318572,-740.27,0.00041424,30]
[310909346,1704814318582,-600.36,0.00041424,30]
[310909347,1704814318592,-501.25,0.00041424,30]
[310909348,1704814318601,-500.0,0.00041424,30]
[310909349,1704814318611,-500.0,0.00041424,30]
[310909350,1704814318621,-1224.61,0.00041424,30]
[310909351,1704814318631,-2236.0,0.00041424,30]
[310909352,1704814318640,-2897.3,0.00041424,30]
[310909353,1704814318650,-1928.1,0.00041424,30]
[310909354,1704814318659,-609.93406505,0.00041424,30]
[310909355,1704814318668,-500.0,0.00041424,30]
[310909356,1704814318678,-1993.87,0.00041424,30]
[310909357,1704814318688,-576.08,0.00041424,30]
[310909358,1704814318698,-500.0,0.00041424,30]
[310909359,1704814318707,-556.49,0.00041424,30]
[310909360,1704814318717,-624.68,0.00041424,30]
[310909361,1704814318726,-770.16,0.00041424,30]
[310909362,1704814318736,-2377.69,0.00041424,30]
[310909363,1704814318745,-606.18473784,0.00041424,30]
[310909364,1704814318754,-1122.24,0.00041424,30]
[310909365,1704814318764,-500.0,0.00041424,30]
[310909366,1704814318773,-500.0,0.00041424,30]
[310909367,1704814318783,-500.0,0.00041424,30]
[310909368,1704814318792,-500.0,0.00041424,30]
[310909369,1704814318802,-2275.75,0.00041424,30]
[310909370,1704814318813,-2702.81,0.00041424,30]
[310909371,1704814318823,-500.0,0.00041424,30]
[310909372,1704814318833,-228.76,0.00041424,30]
[310909373,1704814318843,-500.0,0.00041424,30]
[310909374,1704814318852,-500.0,0.00041424,30]
[310909375,1704814318862,-1074.62,0.00041424,30]
[310909376,1704814318872,-787.86,0.00041424,30]
[310909377,1704814318882,-500.0,0.00041424,30]
[310909378,1704814318892,-500.0,0.00041424,30]
[310909379,1704814318902,-2309.85,0.00041424,30]
[310909380,1704814318911,-3474.73,0.00041424,30]
[310909381,1704814318921,-2283.1,0.00041424,30]
[310909382,1704814318931,-500.0,0.00041424,30]
[310909383,1704814318942,-1596.69,0.00041424,30]
[310909384,1704814318952,-1645.78,0.00041424,30]
[310909385,1704814318962,-1113.3,0.00041424,30]
[310909386,1704814318972,-1309.33,0.00041424,30]
[310909387,1704814318982,-500.0,0.00041424,30]
[310909388,1704814318993,-1314.94,0.00041424,30]
[310909389,1704814319003,-500.0,0.00041424,30]
[310909390,1704814319013,-500.0,0.00041424,30]
[310909391,1704814319024,-1968.01,0.00041424,30]
[310909392,1704814319034,-500.0,0.00041424,2]
[310909393,1704814319043,-1096.11,0.00041424,30]
[310909394,1704814319053,-1246.22,0.00041424,30]
[310909395,1704814319063,-721.49,0.00041424,30]
[310909396,1704814319076,-544.47,0.00041424,30]
[310909397,1704814319085,-2589.92,0.00041424,30]
[310909398,1704814319095,-1433.82,0.00041424,30]
[310909399,1704814319104,-500.0,0.00041424,30]
[310909400,1704814319113,-500.0,0.00041424,30]
[310909401,1704814319123,-500.0,0.00041424,30]
[310909402,1704814319133,-1499.73,0.00041424,30]
[310909403,1704814319142,-500.0,0.00041424,30]
[310909404,1704814319152,-500.0,0.00041424,30]
[310909405,1704814319162,-1138.55,0.00041424,30]
[310909406,1704814319171,-2193.46,0.00041424,30]
[310909407,1704814319181,-1590.0,0.00041424,30]
[310909408,1704814319191,-1703.93,0.00041424,30]
[310909409,1704814319201,-1188.38,0.00041424,30]
[310909410,1704814319211,-500.0,0.00041424,30]
[310909411,1704814319220,-500.0,0.00041424,30]
[310909412,1704814319230,-500.0,0.00041424,30]
[310909413,1704814319240,-500.0,0.00041424,30]
[310909414,1704814319249,-500.0,0.00041424,30]
[310909415,1704814319260,-987.73,0.00041424,30]
[310909416,1704814319269,-520.23,0.00041424,30]
[310909417,1704814319279,-1982.92,0.00041424,30]
[310909418,1704814319289,-523.39,0.00041424,30]
[310909419,1704814319299,-562.23,0.00041424,30]
[310909420,1704814319308,-641.09,0.00041424,30]
[310909421,1704814319318,-931.93,0.00041424,30]
[310909422,1704814319327,-552.3,0.00041424,30]
[310909423,1704814319337,-500.0,0.00041424,30]
[310909424,1704814319346,-1038.62,0.00041424,30]
[310909425,1704814319355,-1121.37,0.00041424,30]
[310909426,1704814319364,-3941.88,0.00041424,30]
[310909427,1704814319374,-1704.41,0.00041424,30]
[310909428,1704814319383,-1031.35,0.00041424,30]
[310909429,1704814319392,-600.61,0.00041424,30]
[310909430,1704814319402,-672.4,0.00041424,30]
[310909431,1704814319412,-1793.95,0.00041424,30]